[Event "GrandPrix_30.05"]
[Site "Chess.com"]
[Date "2020.05.30"]
[Round "6"]
[White "SavelievAlexei"]
[Black "Natalya_Buksa"]
[Result "0-1"]
[WhiteElo "2154"]
[BlackElo "2101"]
[TimeControl "600+2"]
[EndTime "10:51:14 PDT"]
[Termination "Natalya_Buksa won by resignation"]

1. d4 {[%clk 0:10:01.9]} 1... d5 {[%clk 0:09:59.5]} 2. Nc3 {[%clk 0:10:01.9]}
2... Nf6 {[%clk 0:09:59.1]} 3. Bf4 {[%clk 0:10:02.1]} 3... e6 {[%clk 0:10:00.3]}
4. e3 {[%clk 0:10:03]} 4... a6 {[%clk 0:10:01.5]} 5. g4 {[%clk 0:10:03.9]} 5...
Bd6 {[%clk 0:09:46.6]} 6. Qf3 {[%clk 0:10:03.4]} 6... Bxf4 {[%clk 0:09:34.3]} 7.
exf4 {[%clk 0:10:04.3]} 7... Qd6 {[%clk 0:09:30.3]} 8. h4 {[%clk 0:09:59.5]}
8... c5 {[%clk 0:09:28.9]} 9. dxc5 {[%clk 0:09:56.6]} 9... Qxc5 {[%clk 0:09:30]}
10. O-O-O {[%clk 0:09:55.2]} 10... Nc6 {[%clk 0:09:19.2]} 11. g5 {[%clk
0:09:50.7]} 11... Nd7 {[%clk 0:09:18]} 12. f5 {[%clk 0:09:50.3]} 12... Nde5
{[%clk 0:09:14]} 13. Qf4 {[%clk 0:09:45.6]} 13... Bd7 {[%clk 0:09:00.6]} 14. Bg2
{[%clk 0:09:42.3]} 14... O-O-O {[%clk 0:08:56.5]} 15. Nge2 {[%clk 0:09:40.5]}
15... Nc4 {[%clk 0:08:54.6]} 16. a3 {[%clk 0:08:34.7]} 16... Na7 {[%clk
0:05:52.1]} 17. Qg3 {[%clk 0:06:37.8]} 17... Qb6 {[%clk 0:05:44.8]} 18. b3
{[%clk 0:06:35.4]} 18... Nxa3 {[%clk 0:05:44]} 19. Rd3 {[%clk 0:05:41.2]} 19...
Qc7 {[%clk 0:05:15.6]} 20. Qe3 {[%clk 0:05:33.5]} 20... Kb8 {[%clk 0:05:08.1]}
21. f4 {[%clk 0:05:32.9]} 21... N3b5 {[%clk 0:04:58.5]} 22. Na4 {[%clk
0:05:31.5]} 22... Nd6 {[%clk 0:04:59.5]} 23. fxe6 {[%clk 0:05:27.1]} 23... Bxa4
{[%clk 0:04:21.1]} 24. bxa4 {[%clk 0:05:29]} 24... Nc4 {[%clk 0:04:21.7]} 25.
Qd4 {[%clk 0:05:25.4]} 25... fxe6 {[%clk 0:04:22]} 26. Nc3 {[%clk 0:05:13]}
26... Nc6 {[%clk 0:04:20.3]} 27. Qc5 {[%clk 0:05:13.8]} 27... Qxf4+ {[%clk
0:04:18.4]} 28. Kb1 {[%clk 0:05:15.1]} 28... Qd6 {[%clk 0:04:17.4]} 29. Qxd6+
{[%clk 0:05:13.5]} 29... Nxd6 {[%clk 0:04:06.8]} 30. Re1 {[%clk 0:05:13.8]}
30... Rhe8 {[%clk 0:03:57.5]} 31. Bh3 {[%clk 0:05:14.4]} 31... Ne4 {[%clk
0:03:12]} 32. Nxe4 {[%clk 0:05:09.8]} 32... dxe4 {[%clk 0:03:12.9]} 33. Rxd8+
{[%clk 0:05:05.8]} 33... Rxd8 {[%clk 0:03:13]} 34. Rxe4 {[%clk 0:05:05.9]} 34...
e5 {[%clk 0:03:13.6]} 35. Bf5 {[%clk 0:05:04.4]} 35... g6 {[%clk 0:02:59.4]} 36.
Be6 {[%clk 0:05:05.4]} 36... Rd4 {[%clk 0:02:49.6]} 37. Rxd4 {[%clk 0:04:58.4]}
37... Nxd4 {[%clk 0:02:51.5]} 38. Bg8 {[%clk 0:04:59.4]} 38... Nf5 {[%clk
0:02:52.5]} 39. h5 {[%clk 0:04:58.9]} 39... gxh5 {[%clk 0:02:52.7]} 40. Bxh7
{[%clk 0:04:59.3]} 40... Ng7 {[%clk 0:02:53.6]} 41. Kc1 {[%clk 0:04:58]} 41...
Kc7 {[%clk 0:02:18.9]} 42. Be4 {[%clk 0:04:57]} 42... b6 {[%clk 0:02:14.8]} 43.
Kd2 {[%clk 0:04:56.6]} 43... Kd6 {[%clk 0:02:15.8]} 44. Ke3 {[%clk 0:04:57.6]}
44... Ne6 {[%clk 0:02:15.7]} 45. g6 {[%clk 0:04:58.1]} 45... Ke7 {[%clk
0:02:17.1]} 46. Bd3 {[%clk 0:04:47.5]} 46... a5 {[%clk 0:02:14.1]} 47. Ke4
{[%clk 0:04:47.3]} 47... Kf6 {[%clk 0:02:13.7]} 48. Kd5 {[%clk 0:04:45.9]} 48...
Nf4+ {[%clk 0:02:13.4]} 49. Kc6 {[%clk 0:04:47.1]} 49... Nxd3 {[%clk 0:02:13.4]}
50. cxd3 {[%clk 0:04:49]} 50... h4 {[%clk 0:02:15.1]} 0-1

[Event "GrandPrix_30.05"]
[Site "Chess.com"]
[Date "2020.05.30"]
[Round "6"]
[White "bratkoo"]
[Black "ehrenfeld"]
[Result "1-0"]
[WhiteElo "2208"]
[BlackElo "2001"]
[TimeControl "600+2"]
[EndTime "10:51:30 PDT"]
[Termination "bratkoo won by resignation"]

1. e4 {[%clk 0:10:01.2]} 1... e5 {[%clk 0:09:59.1]} 2. Bc4 {[%clk 0:09:59.9]}
2... Nf6 {[%clk 0:09:58.7]} 3. d3 {[%clk 0:10:00.2]} 3... Nc6 {[%clk 0:09:56]}
4. Nf3 {[%clk 0:10:00.6]} 4... h6 {[%clk 0:09:50.3]} 5. a4 {[%clk 0:09:54.3]}
5... d6 {[%clk 0:09:49.8]} 6. O-O {[%clk 0:09:54.3]} 6... g5 {[%clk 0:09:48.8]}
7. c3 {[%clk 0:09:46.9]} 7... Bg7 {[%clk 0:09:48.4]} 8. Re1 {[%clk 0:09:47.1]}
8... g4 {[%clk 0:09:47.3]} 9. Nfd2 {[%clk 0:09:44.4]} 9... O-O {[%clk
0:09:40.1]} 10. Nf1 {[%clk 0:09:44.7]} 10... d5 {[%clk 0:09:39.2]} 11. exd5
{[%clk 0:09:45.2]} 11... Nxd5 {[%clk 0:09:39.7]} 12. Ng3 {[%clk 0:09:31.7]}
12... Nde7 {[%clk 0:07:55.1]} 13. Nd2 {[%clk 0:08:27.1]} 13... Qd6 {[%clk
0:07:48.7]} 14. b4 {[%clk 0:07:53.3]} 14... Qg6 {[%clk 0:07:40.6]} 15. b5 {[%clk
0:07:54.2]} 15... Na5 {[%clk 0:07:02]} 16. Ba3 {[%clk 0:07:54.8]} 16... Re8
{[%clk 0:06:02.9]} 17. d4 {[%clk 0:07:53.9]} 17... Nf5 {[%clk 0:04:10.9]} 18.
Bd3 {[%clk 0:07:50.5]} 18... Qg5 {[%clk 0:04:05.5]} 19. Nde4 {[%clk 0:07:45.4]}
19... Qh4 {[%clk 0:03:28.7]} 20. Bb4 {[%clk 0:07:45]} 20... b6 {[%clk 0:03:23]}
21. Nxf5 {[%clk 0:07:00.9]} 21... Bxf5 {[%clk 0:03:21.9]} 22. Ng3 {[%clk
0:07:02.6]} 22... Bxd3 {[%clk 0:03:02.4]} 23. Qxd3 {[%clk 0:07:04.5]} 23... exd4
{[%clk 0:02:55.8]} 24. Nf5 {[%clk 0:07:03.8]} 24... Qg5 {[%clk 0:02:51.8]} 25.
cxd4 {[%clk 0:06:56.2]} 25... Bf8 {[%clk 0:02:12.1]} 26. Bd2 {[%clk 0:05:43.1]}
26... Qg6 {[%clk 0:02:07.7]} 27. f3 {[%clk 0:05:44.2]} 27... gxf3 {[%clk
0:02:00.7]} 28. Qxf3 {[%clk 0:05:44.9]} 28... Nc4 {[%clk 0:01:57.1]} 29. Bxh6
{[%clk 0:05:28.7]} 29... Bxh6 {[%clk 0:01:45.2]} 30. Ne7+ {[%clk 0:05:29.5]}
30... Rxe7 {[%clk 0:01:45.7]} 31. Qxa8+ {[%clk 0:05:29.1]} 31... Kg7 {[%clk
0:01:02.9]} 32. Rxe7 {[%clk 0:05:28.7]} 32... Be3+ {[%clk 0:00:56.3]} 33. Kh1
{[%clk 0:05:15.5]} 33... Bxd4 {[%clk 0:00:55.3]} 34. Rf1 {[%clk 0:05:16.7]}
34... Ne5 {[%clk 0:00:51.4]} 35. Qd5 {[%clk 0:05:12]} 1-0

[Event "GrandPrix_30.05"]
[Site "Chess.com"]
[Date "2020.05.30"]
[Round "6"]
[White "chess_big_master"]
[Black "Borisss85"]
[Result "1-0"]
[WhiteElo "2072"]
[BlackElo "2132"]
[TimeControl "600+2"]
[EndTime "10:51:51 PDT"]
[Termination "chess_big_master won by resignation"]

1. d4 {[%clk 0:10:01.9]} 1... Nf6 {[%clk 0:09:47.5]} 2. Nf3 {[%clk 0:10:02.5]}
2... g6 {[%clk 0:09:46]} 3. g3 {[%clk 0:10:03.5]} 3... Bg7 {[%clk 0:09:47]} 4.
Bg2 {[%clk 0:10:04.8]} 4... O-O {[%clk 0:09:48.5]} 5. O-O {[%clk 0:10:06]} 5...
d5 {[%clk 0:09:50]} 6. c3 {[%clk 0:10:06.4]} 6... c6 {[%clk 0:09:50.3]} 7. a4
{[%clk 0:10:06.7]} 7... Bf5 {[%clk 0:09:47.9]} 8. a5 {[%clk 0:10:05.3]} 8...
Bxb1 {[%clk 0:09:47.1]} 9. Rxb1 {[%clk 0:10:05]} 9... Qxa5 {[%clk 0:09:48.1]}
10. Bf4 {[%clk 0:10:03.5]} 10... Nbd7 {[%clk 0:09:45.9]} 11. Qb3 {[%clk
0:10:02.2]} 11... Qb6 {[%clk 0:09:43.9]} 12. Qa3 {[%clk 0:10:03.3]} 12... Rfe8
{[%clk 0:09:41.1]} 13. Ne5 {[%clk 0:09:58.4]} 13... Nxe5 {[%clk 0:09:30.1]} 14.
dxe5 {[%clk 0:09:48.1]} 14... Nd7 {[%clk 0:08:59.6]} 15. Be3 {[%clk 0:09:47.2]}
15... Qc7 {[%clk 0:08:55.3]} 16. f4 {[%clk 0:09:46.6]} 16... e6 {[%clk
0:08:47.7]} 17. b4 {[%clk 0:09:29.1]} 17... f6 {[%clk 0:08:35.3]} 18. exf6
{[%clk 0:09:26.9]} 18... Nxf6 {[%clk 0:08:35.8]} 19. h3 {[%clk 0:09:02]} 19...
e5 {[%clk 0:08:24.5]} 20. Qa2 {[%clk 0:07:20.6]} 20... Nh5 {[%clk 0:07:17.9]}
21. f5 {[%clk 0:06:39.4]} 21... a6 {[%clk 0:06:12.9]} 22. Qc2 {[%clk 0:05:12]}
22... e4 {[%clk 0:05:49.8]} 23. g4 {[%clk 0:05:04.4]} 23... Ng3 {[%clk
0:05:43.7]} 24. f6 {[%clk 0:04:50.8]} 24... Nxf1 {[%clk 0:05:43.4]} 25. Rxf1
{[%clk 0:04:50.5]} 25... Rf8 {[%clk 0:05:42.9]} 26. fxg7 {[%clk 0:04:47.9]}
26... Rxf1+ {[%clk 0:05:43.4]} 27. Kxf1 {[%clk 0:04:44.1]} 27... Qg3 {[%clk
0:05:39.5]} 28. Qd2 {[%clk 0:04:22.2]} 28... Kxg7 {[%clk 0:05:35.2]} 29. Bh6+
{[%clk 0:04:18]} 29... Kf7 {[%clk 0:05:24.2]} 30. Qd4 {[%clk 0:04:06.8]} 30...
Ke6 {[%clk 0:04:57]} 31. c4 {[%clk 0:03:00.7]} 31... Rd8 {[%clk 0:04:02.4]} 32.
e3 {[%clk 0:02:41.9]} 32... Qd6 {[%clk 0:03:14.7]} 33. Bf4 {[%clk 0:02:18.8]}
33... Qxb4 {[%clk 0:03:05.2]} 34. cxd5+ {[%clk 0:02:15.8]} 1-0

[Event "GrandPrix_30.05"]
[Site "Chess.com"]
[Date "2020.05.30"]
[Round "6"]
[White "TheNextLevelFan"]
[Black "LANCELOT96"]
[Result "0-1"]
[WhiteElo "2217"]
[BlackElo "2226"]
[TimeControl "600+2"]
[EndTime "10:52:06 PDT"]
[Termination "LANCELOT96 won by resignation"]

1. d4 {[%clk 0:09:34.2]} 1... d5 {[%clk 0:10:00.4]} 2. c4 {[%clk 0:09:24.2]}
2... c6 {[%clk 0:10:01.7]} 3. Nf3 {[%clk 0:09:24.4]} 3... Nf6 {[%clk 0:10:02.9]}
4. e3 {[%clk 0:09:21.8]} 4... Bg4 {[%clk 0:10:03.8]} 5. Nc3 {[%clk 0:09:21.9]}
5... e6 {[%clk 0:10:04.9]} 6. h3 {[%clk 0:09:22.1]} 6... Bh5 {[%clk 0:10:05.6]}
7. Be2 {[%clk 0:09:23.5]} 7... Nbd7 {[%clk 0:10:06.4]} 8. O-O {[%clk 0:09:23]}
8... Bd6 {[%clk 0:10:07.6]} 9. Nd2 {[%clk 0:09:23.6]} 9... Bg6 {[%clk
0:10:06.5]} 10. Bf3 {[%clk 0:09:12.8]} 10... O-O {[%clk 0:09:53.6]} 11. Re1
{[%clk 0:09:09.4]} 11... Qc7 {[%clk 0:09:29.6]} 12. e4 {[%clk 0:09:02.1]} 12...
dxe4 {[%clk 0:09:30.8]} 13. Ndxe4 {[%clk 0:09:02.7]} 13... Nxe4 {[%clk 0:09:32]}
14. Nxe4 {[%clk 0:09:04.3]} 14... Bf4 {[%clk 0:09:33.3]} 15. Qb3 {[%clk
0:08:53]} 15... Bxc1 {[%clk 0:09:32.7]} 16. Raxc1 {[%clk 0:08:52]} 16... Bxe4
{[%clk 0:09:34.2]} 17. Bxe4 {[%clk 0:08:22.1]} 17... Rad8 {[%clk 0:09:13.7]} 18.
Bf3 {[%clk 0:07:55.1]} 18... Nf6 {[%clk 0:09:06.9]} 19. d5 {[%clk 0:07:52]}
19... exd5 {[%clk 0:09:07.9]} 20. cxd5 {[%clk 0:07:52.9]} 20... c5 {[%clk
0:09:09.5]} 21. Qc4 {[%clk 0:07:28]} 21... Rc8 {[%clk 0:08:36.9]} 22. b4 {[%clk
0:07:21.4]} 22... b6 {[%clk 0:08:38.4]} 23. bxc5 {[%clk 0:07:04.5]} 23... bxc5
{[%clk 0:08:40.3]} 24. Qa6 {[%clk 0:06:11.2]} 24... Qb6 {[%clk 0:08:24.2]} 25.
Qa3 {[%clk 0:05:56.7]} 25... Rc7 {[%clk 0:08:12.6]} 26. Rc4 {[%clk 0:05:48.3]}
26... Rfc8 {[%clk 0:07:21.5]} 27. h4 {[%clk 0:04:55.3]} 27... Ne8 {[%clk
0:07:09.7]} 28. Bg4 {[%clk 0:04:52.5]} 28... Rd8 {[%clk 0:07:08.8]} 29. h5
{[%clk 0:03:21.3]} 29... h6 {[%clk 0:07:07.1]} 30. Bf3 {[%clk 0:03:10.9]} 30...
Nd6 {[%clk 0:07:08.2]} 31. Rg4 {[%clk 0:03:09.7]} 31... c4 {[%clk 0:07:01.1]}
32. Qc3 {[%clk 0:03:07.2]} 32... f6 {[%clk 0:06:29.5]} 33. Qxf6 {[%clk
0:02:51.2]} 33... Rf7 {[%clk 0:06:26.4]} 34. Qxh6 {[%clk 0:02:42.5]} 34... c3
{[%clk 0:06:23.7]} 35. Qg6 {[%clk 0:02:26.6]} 35... Nb5 {[%clk 0:06:07.6]} 36.
Re6 {[%clk 0:02:19.2]} 36... Qc7 {[%clk 0:05:55]} 37. Rc6 {[%clk 0:02:19.4]}
37... Qe5 {[%clk 0:05:51.5]} 38. h6 {[%clk 0:02:11.9]} 38... Nd4 {[%clk
0:05:42.1]} 39. h7+ {[%clk 0:02:00.8]} 39... Kh8 {[%clk 0:05:43]} 40. Qxf7
{[%clk 0:01:54.3]} 40... Nxc6 {[%clk 0:05:44.3]} 41. dxc6 {[%clk 0:01:54.8]}
41... c2 {[%clk 0:05:45.7]} 42. Qg8+ {[%clk 0:00:32.7]} 42... Rxg8 {[%clk
0:05:44.3]} 43. hxg8=Q+ {[%clk 0:00:34.6]} 43... Kxg8 {[%clk 0:05:45.8]} 44. Rc4
{[%clk 0:00:31.1]} 44... Qe1+ {[%clk 0:05:43.9]} 45. Kh2 {[%clk 0:00:32.2]}
45... c1=Q {[%clk 0:05:43.4]} 46. Bd5+ {[%clk 0:00:23.3]} 46... Kf8 {[%clk
0:05:39.1]} 47. c7 {[%clk 0:00:18.5]} 47... Qxc4 {[%clk 0:05:38.1]} 48. Bxc4
{[%clk 0:00:19.5]} 48... Qe5+ {[%clk 0:05:39.2]} 0-1

[Event "GrandPrix_30.05"]
[Site "Chess.com"]
[Date "2020.05.30"]
[Round "6"]
[White "Arasvard"]
[Black "LuckyLuka04"]
[Result "0-1"]
[WhiteElo "1997"]
[BlackElo "2161"]
[TimeControl "600+2"]
[EndTime "10:52:09 PDT"]
[Termination "LuckyLuka04 won by resignation"]

1. d4 {[%clk 0:10:01.9]} 1... Nf6 {[%clk 0:10:01.1]} 2. c4 {[%clk 0:10:02.6]}
2... a6 {[%clk 0:10:02.4]} 3. Nc3 {[%clk 0:10:01.5]} 3... c5 {[%clk 0:10:03.7]}
4. d5 {[%clk 0:10:01.7]} 4... b5 {[%clk 0:10:04.6]} 5. cxb5 {[%clk 0:09:59.1]}
5... axb5 {[%clk 0:10:06.5]} 6. e4 {[%clk 0:09:53.2]} 6... b4 {[%clk 0:10:06.9]}
7. Nb5 {[%clk 0:09:54.2]} 7... d6 {[%clk 0:10:08.2]} 8. Bf4 {[%clk 0:09:54]}
8... g5 {[%clk 0:10:09.1]} 9. Bxg5 {[%clk 0:09:53.7]} 9... Nxe4 {[%clk
0:10:09.9]} 10. Be3 {[%clk 0:09:54.7]} 10... Bg7 {[%clk 0:10:00]} 11. Bd3 {[%clk
0:09:39.9]} 11... Nf6 {[%clk 0:09:59]} 12. Ne2 {[%clk 0:09:24.5]} 12... Ba6
{[%clk 0:09:49.9]} 13. Ng3 {[%clk 0:09:13.7]} 13... Nxd5 {[%clk 0:09:09.5]} 14.
Nf5 {[%clk 0:08:21.1]} 14... Bxb2 {[%clk 0:08:19.4]} 15. Nbxd6+ {[%clk
0:06:25.1]} 15... exd6 {[%clk 0:07:36.4]} 16. Bxa6 {[%clk 0:06:25.7]} 16... Rxa6
{[%clk 0:06:59.6]} 17. Qxd5 {[%clk 0:06:23.6]} 17... Bxa1 {[%clk 0:06:38.2]} 18.
O-O {[%clk 0:06:24.4]} 18... Qf6 {[%clk 0:05:29.7]} 19. Re1 {[%clk 0:05:46.3]}
19... O-O {[%clk 0:05:01.4]} 20. Bg5 {[%clk 0:05:31.6]} 20... Qc3 {[%clk
0:04:03.4]} 21. Re4 {[%clk 0:05:01.1]} 21... Nd7 {[%clk 0:02:55.4]} 22. Nh6+
{[%clk 0:02:44.6]} 22... Kg7 {[%clk 0:02:42.7]} 23. Nf5+ {[%clk 0:02:33.3]}
23... Kh8 {[%clk 0:02:41.6]} 24. h3 {[%clk 0:02:29.8]} 24... Nf6 {[%clk
0:02:12.6]} 0-1

[Event "GrandPrix_30.05"]
[Site "Chess.com"]
[Date "2020.05.30"]
[Round "6"]
[White "LorisinoC"]
[Black "BogdanBelyakov89"]
[Result "1-0"]
[WhiteElo "2195"]
[BlackElo "2227"]
[TimeControl "600+2"]
[EndTime "10:52:15 PDT"]
[Termination "LorisinoC won by resignation"]

1. e4 {[%clk 0:10:01.9]} 1... e5 {[%clk 0:10:00.1]} 2. Nf3 {[%clk 0:10:01.8]}
2... Nc6 {[%clk 0:10:00.7]} 3. Bc4 {[%clk 0:10:03.2]} 3... Bc5 {[%clk
0:10:01.1]} 4. c3 {[%clk 0:10:03.2]} 4... Nf6 {[%clk 0:10:01.4]} 5. d4 {[%clk
0:10:03.8]} 5... exd4 {[%clk 0:10:03.3]} 6. cxd4 {[%clk 0:10:04]} 6... Bb4+
{[%clk 0:10:04.4]} 7. Nbd2 {[%clk 0:10:04.7]} 7... Nxe4 {[%clk 0:08:37.2]} 8. d5
{[%clk 0:10:04.7]} 8... Ne7 {[%clk 0:08:31.4]} 9. O-O {[%clk 0:10:00.5]} 9...
Nxd2 {[%clk 0:08:31.6]} 10. Bxd2 {[%clk 0:09:55.4]} 10... Bxd2 {[%clk
0:08:31.7]} 11. d6 {[%clk 0:09:54]} 11... cxd6 {[%clk 0:08:22]} 12. Qxd2 {[%clk
0:09:50]} 12... d5 {[%clk 0:08:22.7]} 13. Bxd5 {[%clk 0:09:38.5]} 13... Nxd5
{[%clk 0:08:24.6]} 14. Rfe1+ {[%clk 0:09:01.2]} 14... Ne7 {[%clk 0:08:23.1]} 15.
Qd6 {[%clk 0:09:01.8]} 15... O-O {[%clk 0:06:54]} 16. Rxe7 {[%clk 0:08:58.3]}
16... Qb6 {[%clk 0:06:54.8]} 17. Qxb6 {[%clk 0:08:49.5]} 17... axb6 {[%clk
0:06:55.4]} 18. a3 {[%clk 0:08:51.1]} 18... d5 {[%clk 0:06:47.1]} 19. Rd1 {[%clk
0:08:44.3]} 19... Rd8 {[%clk 0:06:29.6]} 20. Rxd5 {[%clk 0:08:40]} 20... Be6
{[%clk 0:05:31.5]} 21. Rd4 {[%clk 0:08:40.6]} 21... Rxd4 {[%clk 0:03:05.1]} 22.
Nxd4 {[%clk 0:08:35.3]} 22... Rd8 {[%clk 0:03:05.3]} 23. h3 {[%clk 0:08:23.9]}
23... Kf8 {[%clk 0:03:02.1]} 24. Rxe6 {[%clk 0:08:14.5]} 24... Rxd4 {[%clk
0:03:02.6]} 25. Rxb6 {[%clk 0:08:10.1]} 25... Rd7 {[%clk 0:03:01.9]} 26. a4
{[%clk 0:08:00.5]} 26... Ke7 {[%clk 0:03:01.2]} 27. Kf1 {[%clk 0:07:56.6]} 27...
Kd8 {[%clk 0:03:01.6]} 28. b4 {[%clk 0:07:42.2]} 28... Kc7 {[%clk 0:03:01.2]}
29. a5 {[%clk 0:07:42.7]} 29... Rd2 {[%clk 0:03:01.1]} 30. g3 {[%clk 0:07:37.4]}
30... Rb2 {[%clk 0:03:00.8]} 31. Kg2 {[%clk 0:07:27.3]} 31... Rb3 {[%clk
0:03:01.5]} 32. h4 {[%clk 0:07:24.8]} 32... Kc8 {[%clk 0:02:40]} 33. h5 {[%clk
0:07:23.2]} 33... h6 {[%clk 0:02:39.8]} 34. g4 {[%clk 0:07:03.9]} 34... Kc7
{[%clk 0:02:38.8]} 35. f4 {[%clk 0:06:58.2]} 35... f6 {[%clk 0:02:04]} 36. g5
{[%clk 0:06:47.9]} 36... fxg5 {[%clk 0:01:58.7]} 37. fxg5 {[%clk 0:06:45.4]}
37... hxg5 {[%clk 0:01:59.2]} 38. Rg6 {[%clk 0:06:43]} 38... Rxb4 {[%clk
0:01:58.8]} 39. Rxg7+ {[%clk 0:06:34.9]} 39... Kb8 {[%clk 0:01:47.9]} 40. Rxg5
{[%clk 0:06:36.8]} 40... Rh4 {[%clk 0:01:42.2]} 41. Kg3 {[%clk 0:06:33.6]} 41...
Rh1 {[%clk 0:01:42.2]} 42. Kg4 {[%clk 0:06:32.7]} 42... Ka7 {[%clk 0:01:43.4]}
43. Kf5 {[%clk 0:06:24.7]} 43... Rc1 {[%clk 0:01:28.3]} 44. h6 {[%clk
0:06:16.7]} 44... Rc5+ {[%clk 0:01:28.3]} 45. Kg6 {[%clk 0:06:13.2]} 45... Rc6+
{[%clk 0:01:29.1]} 46. Kh5 {[%clk 0:06:05.5]} 46... Rc7 {[%clk 0:01:29.2]} 47.
Rf5 {[%clk 0:05:53.2]} 47... Ka6 {[%clk 0:00:49.7]} 48. Kg6 {[%clk 0:05:49.5]}
48... Rc1 {[%clk 0:00:42.3]} 49. h7 {[%clk 0:05:43.4]} 49... Rc8 {[%clk
0:00:41.5]} 50. Kg7 {[%clk 0:05:41.6]} 50... Rc7+ {[%clk 0:00:39.8]} 51. Rf7
{[%clk 0:05:41.9]} 51... Rc8 {[%clk 0:00:40.9]} 52. h8=Q {[%clk 0:05:41.1]}
52... Rxh8 {[%clk 0:00:40.9]} 53. Kxh8 {[%clk 0:05:40.8]} 53... Kxa5 {[%clk
0:00:42.8]} 54. Rxb7 {[%clk 0:05:40.2]} 1-0

[Event "GrandPrix_30.05"]
[Site "Chess.com"]
[Date "2020.05.30"]
[Round "6"]
[White "Murad_Ibrahimli"]
[Black "Shahinyan_ChessMood"]
[Result "1-0"]
[WhiteElo "2580"]
[BlackElo "2389"]
[TimeControl "600+2"]
[EndTime "10:52:25 PDT"]
[Termination "Murad_Ibrahimli won by resignation"]

1. d4 {[%clk 0:10:01.9]} 1... Nf6 {[%clk 0:09:53.3]} 2. c4 {[%clk 0:10:01.5]}
2... c5 {[%clk 0:09:53.3]} 3. d5 {[%clk 0:10:01.8]} 3... e6 {[%clk 0:09:51.4]}
4. Nc3 {[%clk 0:10:01.9]} 4... exd5 {[%clk 0:09:52.8]} 5. cxd5 {[%clk
0:10:02.4]} 5... d6 {[%clk 0:09:54.7]} 6. Nf3 {[%clk 0:10:02.1]} 6... g6 {[%clk
0:09:53.7]} 7. Bf4 {[%clk 0:10:02.6]} 7... Bg7 {[%clk 0:09:47.8]} 8. Qa4+ {[%clk
0:10:02.1]} 8... Bd7 {[%clk 0:09:25.2]} 9. Qb3 {[%clk 0:10:01.4]} 9... Qc7
{[%clk 0:08:59.3]} 10. e4 {[%clk 0:09:59.3]} 10... O-O {[%clk 0:08:57.5]} 11.
Be2 {[%clk 0:09:58.1]} 11... b5 {[%clk 0:08:03.9]} 12. e5 {[%clk 0:08:39.5]}
12... Nh5 {[%clk 0:06:34.9]} 13. exd6 {[%clk 0:08:38]} 13... Qb6 {[%clk
0:06:23.8]} 14. Be3 {[%clk 0:08:31.1]} 14... a6 {[%clk 0:06:00]} 15. O-O {[%clk
0:08:24.1]} 15... Rc8 {[%clk 0:04:56.8]} 16. a4 {[%clk 0:07:28.1]} 16... b4
{[%clk 0:04:36.2]} 17. Ne4 {[%clk 0:07:25.4]} 17... Nf6 {[%clk 0:04:05]} 18. a5
{[%clk 0:07:02.7]} 18... Qa7 {[%clk 0:03:49.6]} 19. Nxc5 {[%clk 0:05:52.7]}
19... Rxc5 {[%clk 0:03:35]} 20. Rac1 {[%clk 0:05:52.6]} 20... Rxc1 {[%clk
0:03:05.3]} 21. Bxa7 {[%clk 0:05:49.8]} 21... Rxf1+ {[%clk 0:03:04.8]} 22. Kxf1
{[%clk 0:05:50.5]} 22... Rxa7 {[%clk 0:03:06.7]} 23. Qxb4 {[%clk 0:05:51.3]}
23... Bb5 {[%clk 0:03:03.6]} 24. Bxb5 {[%clk 0:05:49.5]} 24... axb5 {[%clk
0:03:05.5]} 25. Qxb5 {[%clk 0:05:50]} 25... Nfd7 {[%clk 0:02:57.7]} 26. b4
{[%clk 0:05:39.8]} 26... Bf8 {[%clk 0:02:07]} 27. Nd4 {[%clk 0:05:34.2]} 27...
Bxd6 {[%clk 0:02:01.1]} 28. Nc6 {[%clk 0:05:33.5]} 28... Rc7 {[%clk 0:01:43.6]}
29. a6 {[%clk 0:05:21.1]} 29... Nxc6 {[%clk 0:01:38.4]} 30. dxc6 {[%clk
0:05:19.7]} 30... Ne5 {[%clk 0:01:40.3]} 31. Qb8+ {[%clk 0:05:08.3]} 31... Kg7
{[%clk 0:01:40.1]} 32. Qxc7 {[%clk 0:05:05.6]} 32... Bxc7 {[%clk 0:01:32.7]} 33.
a7 {[%clk 0:04:55.1]} 33... Nxc6 {[%clk 0:01:28.6]} 34. a8=Q {[%clk 0:04:54.3]}
34... Nxb4 {[%clk 0:01:29.5]} 35. Qe4 {[%clk 0:04:45.4]} 35... Bxh2 {[%clk
0:00:28]} 36. g3 {[%clk 0:04:42.7]} 36... Na6 {[%clk 0:00:26.3]} 37. Qd4+ {[%clk
0:04:33.1]} 37... Kg8 {[%clk 0:00:25.8]} 38. Qd6 {[%clk 0:04:34.3]} 1-0